bitfinex/quotes_SOLUSD_20240725
["timestamp","ask_amount","ask_price","bid_price","bid_amount"]
[1721903147141,27.14049975,168.65,168.58,6.4519]
[1721903149158,9.30049975,168.65,168.58,6.4519]
[1721903152063,23.7707,168.62,168.57,16.3974]
[1721903152252,36.37049975,168.65,168.57,16.3974]
[1721903152253,5.9299,168.64,168.57,16.3974]
[1721903152457,17.84,168.64,168.57,16.3974]
[1721903152656,20.0,168.63,168.57,16.3974]
[1721903153252,25.9298,168.64,168.57,16.3974]
[1721903153574,5.9316,168.59,168.54,6.1863]
[1721903153867,27.07,168.62,168.54,6.1863]
[1721903153868,5.9312,168.6,168.54,6.1863]
[1721903154347,23.7712,168.6,168.54,6.1863]
[1721903154668,27.07,168.62,168.54,6.1863]
[1721903154669,5.9315,168.59,168.54,6.1863]
[1721903154874,27.07,168.62,168.54,6.1863]
[1721903155071,50.9309,168.61,168.54,6.1863]
[1721903155363,23.7716,168.59,168.52,16.4602]
[1721903156046,5.931,168.61,168.52,16.4602]
[1721903156670,23.771,168.61,168.52,16.4602]
[1721903157264,17.84,168.57,168.52,16.4602]
[1721903157661,23.7723,168.57,168.52,16.4602]
[1721903158167,45.0,168.6,168.5,7.2738985]
[1721903158168,17.84,168.55,168.5,7.2738985]
[1721903158379,37.84,168.54,168.5,0.8037985]
[1721903158787,17.84,168.54,168.5,0.8037985]
[1721903159470,20.0,168.56,168.5,0.8037985]
[1721903159655,27.07,168.59,168.5,0.8037985]
[1721903159857,65.0,168.58,168.5,0.8037985]
[1721903160473,82.84,168.58,168.5,0.8037985]
[1721903160974,88.7719,168.58,168.5,0.8037985]
[1721903161173,20.0,168.58,168.5,0.8037985]
[1721903161355,25.9314,168.6,168.51,6.6145]
[1721903161557,43.7714,168.6,168.51,6.6145]
[1721903161869,17.84,168.6,168.52,16.6124]
[1721903162062,17.84,168.63,168.52,16.6124]
[1721903162263,33.99215391,168.62,168.52,16.6124]
[1721903162472,33.2298764,168.64,168.52,16.6124]
[1721903162473,17.84,168.61,168.52,16.6124]
[1721903162776,23.7708,168.61,168.52,16.6124]
[1721903163680,5.9305,168.62,168.52,16.6124]
[1721903163852,10.22491394,168.63,168.52,16.6124]
[1721903164058,12.0896764,168.64,168.52,16.6124]
[1721903164059,32.9998,168.64,168.52,16.6124]
[1721903164259,25.9302,168.63,168.52,16.6124]
[1721903164575,20.0,168.63,168.52,16.6124]
[1721903165779,44.91,168.64,168.52,17.79880219]
[1721903165780,27.07,168.64,168.52,17.79880219]
[1721903166480,27.14049975,168.65,168.53,6.2919]
[1721903166973,9.30049975,168.65,168.54,1.18623993]
[1721903167554,9.30049975,168.65,168.53,7.47812206]
[1721903167761,9.30049975,168.65,168.54,15.8275]
[1721903169160,15.22989975,168.65,168.54,15.8275]
[1721903169360,9.30049975,168.65,168.54,15.8275]
[1721903171070,50.8398,168.64,168.54,15.8275]
[1721903171381,5.9302,168.63,168.54,15.8275]
[1721903172198,13.54,168.58,168.54,15.8275]
[1721903172563,13.54,168.57,168.54,15.8275]
[1721903172865,13.54,168.56,168.54,15.8275]
[1721903173065,23.7709,168.61,168.54,15.8275]
[1721903173066,13.54,168.57,168.54,15.8275]
[1721903174176,50.8605,168.62,168.54,15.8275]
[1721903174572,44.93,168.62,168.54,15.8275]
[1721903174764,50.8605,168.62,168.54,15.8275]
[1721903174964,5.9309,168.61,168.54,15.8275]
[1721903175483,44.93,168.62,168.54,15.8275]
[1721903175689,50.8606,168.62,168.54,15.8275]
[1721903176568,27.09,168.62,168.54,15.8275]
[1721903177460,36.39049975,168.65,168.54,15.8275]
[1721903177660,54.23049975,168.65,168.54,15.8275]
[1721903178478,50.8594,168.65,168.54,15.8275]
[1721903178861,17.84,168.64,168.54,15.8275]
[1721903179273,45.0,168.63,168.54,15.8275]
[1721903179473,62.84,168.63,168.54,15.8275]
[1721903179770,68.7701,168.63,168.54,15.8275]
[1721903179976,62.84,168.63,168.54,15.8275]
[1721903180184,59.7563,168.62,168.54,15.8275]
[1721903180391,17.84,168.6,168.54,15.8275]
[1721903181688,17.84,168.58,168.54,15.8275]
[1721903181985,45.0,168.57,168.54,15.8275]
[1721903182374,27.09,168.59,168.54,15.8275]
[1721903182682,45.0,168.58,168.54,15.8275]
[1721903183188,27.09,168.59,168.54,15.8275]
[1721903183374,17.84,168.58,168.54,15.8275]
[1721903183689,27.09,168.59,168.54,15.8275]
[1721903184377,82.84,168.58,168.5,0.8037985]
[1721903185483,20.0,168.58,168.5,0.8037985]
[1721903185884,50.8615,168.59,168.5,0.8037985]
[1721903186188,5.9319,168.58,168.5,0.8037985]
[1721903186690,50.8616,168.59,168.5,0.8037985]
[1721903187776,44.93,168.59,168.5,0.8037985]
[1721903188084,27.09,168.59,168.51,6.2212]
[1721903188678,50.8616,168.59,168.51,6.2212]
[1721903188874,5.9319,168.58,168.51,6.2212]
[1721903189584,50.8616,168.59,168.51,6.2212]
[1721903191189,5.932,168.58,168.51,6.2212]
[1721903191375,17.84,168.58,168.51,6.2212]
[1721903192093,33.0226,168.56,168.51,6.2212]
[1721903192604,27.09,168.56,168.51,6.2212]
[1721903192975,27.09,168.56,168.5,0.8037985]
[1721903192976,50.8626,168.56,168.5,0.8037985]
[1721903193668,27.09,168.56,168.5,0.8037985]
[1721903194271,13.55,168.52,168.5,0.8037985]
[1721903196086,13.55,168.51,168.5,0.8037985]
[1721903206099,58.4117,168.51,168.5,0.8037985]
[1721903206300,91.9617,168.51,168.5,0.8037985]
[1721903206609,91.9617,168.51,168.41,0.40514842]
[1721903206610,13.55,168.42,168.41,0.40514842]
[1721903207994,13.55,168.43,168.41,0.40514842]
[1721903208309,17.84,168.47,168.2,0.1245]
[1721903208310,5.9414,168.31,168.2,0.1245]
[1721903208623,13.55,168.21,168.2,0.1245]
[1721903208825,25.9449,168.21,168.2,0.1245]
[1721903208989,25.9449,168.21,168.16,0.8037985]
[1721903208990,5.9461,168.18,168.16,0.8037985]
[1721903209313,20.0,168.25,168.0,71.3211465]
[1721903209314,20.0,168.09,168.0,71.3211465]
[1721903209487,8.33976782,168.08,168.0,71.3211465]
[1721903209686,13.55,168.01,168.0,71.3211465]
[1721903209894,20.70221674,168.01,168.0,71.3211465]
[1721903210201,7.15221674,168.01,168.0,71.3211465]
[1721903210511,45.69551309,168.17,168.0,71.3211465]
[1721903210512,27.26,168.13,168.0,71.3211465]
[1721903210685,8.58266009,168.17,168.0,71.3211465]
[1721903210686,7.15577236,168.12,168.08,5.9493]
[1721903210887,7.15577236,168.11,168.09,4.9489]
[1721903211098,1.18755108,168.22,168.07,1.18937643]
[1721903211281,27.26,168.15,168.01,1.18927481]
[1721903211482,27.26,168.15,168.0,71.3211465]
[1721903211909,1.46254438,168.21,168.02,27.26]
[1721903212081,263.7610073,168.22,168.02,28.44975425]
[1721903212082,1.18755108,168.17,168.02,28.44975425]
[1721903212290,1.18755108,168.17,168.02,1.18975425]
[1721903212505,1.18755108,168.17,168.03,27.26]
[1721903212682,1.18755108,168.17,168.02,1.18975425]
[1721903212683,254.1,168.22,168.06,27.26]
[1721903213023,1.18755108,168.21,168.09,27.26]
[1721903213187,395.2011,168.29,168.04,27.26]
[1721903213188,1.18755108,168.2,168.04,27.26]
[1721903213390,1.18755108,168.22,168.09,6.3288]
[1721903213587,20.30285,168.32,168.14,27.26]
[1721903213816,1.18755108,168.28,168.15,1.18887733]
[1721903213983,20.30285,168.32,168.14,27.26]
[1721903214190,20.30285,168.32,168.17,30.58]
[1721903214390,1.18755108,168.31,168.18,66.18854805]
[1721903214588,1.18755108,168.31,168.18,21.18854805]
[1721903215149,1.18755108,168.31,168.17,20.0]
[1721903215292,1.18755108,168.31,168.16,1.1888178]
[1721903215496,1.18755108,168.31,168.16,21.1888178]
[1721903216302,1.18755108,168.31,168.17,45.0]
[1721903216504,20.30285,168.32,168.18,51.76864697]
[1721903216711,1.18755108,168.31,168.18,50.58]
[1721903217109,1.18755108,168.31,168.14,30.58]
[1721903217405,1.18755108,168.31,168.15,66.18884849]
[1721903217784,1.18755108,168.31,168.16,1.18882042]
[1721903219125,1.18755108,168.31,168.15,21.18881453]
[1721903219306,1.18755108,168.3,168.11,30.58]
[1721903219503,1.18755108,168.29,168.15,30.58]
[1721903219804,20.30285,168.32,168.19,30.58]
[1721903220002,20.30285,168.32,168.2,1.18844105]
[1721903220207,20.30285,168.32,168.21,1.18839383]
[1721903220411,20.30285,168.32,168.15,1.18833113]
[1721903220412,1.18755108,168.31,168.15,1.18833113]
[1721903221702,21.18755108,168.31,168.15,1.18833113]
[1721903221910,20.0,168.3,168.15,1.18833113]
[1721903222113,1.18755108,168.29,168.15,1.18833113]
[1721903222412,20.30285,168.32,168.15,1.18833113]
[1721903222599,20.30285,168.32,168.15,21.18833113]
[1721903222600,1.18755108,168.31,168.15,21.18833113]
[1721903222942,5.942,168.3,168.15,21.18833113]
[1721903223234,1.18755108,168.29,168.15,1.18833113]
[1721903223527,1.18755108,168.29,168.14,1.1889043]
[1721903223735,7.12965108,168.29,168.15,1.18888286]
[1721903223905,21.18755108,168.31,168.15,1.18888286]
[1721903224100,45.0,168.3,168.15,1.18888286]
[1721903224434,21.18755108,168.31,168.15,1.18888286]
[1721903224632,20.0,168.31,168.15,1.18888286]
[1721903225001,21.49040108,168.32,168.15,46.18888286]
[1721903225201,21.49040108,168.32,168.16,20.0]
[1721903225419,21.49040108,168.32,168.17,76.76855123]
[1721903225621,1.18755108,168.31,168.18,21.18848935]
[1721903225937,1.18755108,168.31,168.18,1.18859061]
[1721903226099,20.30285,168.32,168.18,46.18859061]
[1721903226917,20.30285,168.32,168.19,20.0]
[1721903227117,20.30285,168.32,168.21,46.5356]
[1721903227303,20.30285,168.32,168.22,66.18816741]
[1721903228608,20.30285,168.32,168.25,30.58]
[1721903228809,20.30285,168.32,168.26,65.0]
[1721903229011,12.5287,168.5,168.3,6.26]
[1721903229226,1.18755108,168.49,168.33,30.58]
[1721903229413,26.23725,168.51,168.34,21.18741826]
[1721903229730,5.9351,168.49,168.34,21.18741826]
[1721903229918,1.18755108,168.48,168.34,21.18741826]
[1721903230319,1.18755108,168.52,168.35,45.0]
[1721903230523,1.18755108,168.51,168.36,1.18734256]
[1721903231239,6.20971928,168.54,168.37,30.58]
[1721903231240,1.18755108,168.52,168.37,30.58]
[1721903231533,7.39727008,168.51,168.38,1.18713372]
[1721903232036,7.39727008,168.51,168.36,1.18725974]
[1721903232214,37.97727008,168.51,168.3,7.44758001]
[1721903232541,30.58,168.47,168.3,6.26]
[1721903232708,21.18755108,168.46,168.25,1.18807577]
[1721903232909,21.18755108,168.46,168.24,37.0686]
[1721903232910,5.939,168.38,168.24,38.25667577]
[1721903233124,1.18755108,168.37,168.24,38.25667577]
[1721903233315,1.18755108,168.37,168.24,6.4886]
[1721903233726,21.18755108,168.37,168.24,6.4886]
[1721903234126,1.18755108,168.37,168.24,6.4886]
[1721903234327,1.18755108,168.45,168.3,30.58]
[1721903234529,1.18755108,168.45,168.31,1.18773954]
[1721903235047,1.18755108,168.46,168.31,21.18773954]
[1721903235253,1.18755108,168.44,168.31,21.18773954]
[1721903235748,5.9355,168.48,168.31,21.18773954]
[1721903236051,1.18755108,168.48,168.32,45.0]
[1721903236246,1.18755108,168.48,168.33,21.18758582]
[1721903236435,1.18755108,168.48,168.34,45.0]
[1721903236627,1.18755108,168.48,168.35,20.0]
[1721903236833,1.18755108,168.47,168.33,21.18758582]
[1721903237027,1.18755108,168.47,168.34,45.0]
[1721903237243,1.18755108,168.47,168.35,20.0]
[1721903237841,5.9362,168.46,168.31,21.18764324]
[1721903238165,1.18755108,168.45,168.3,1.18766462]
[1721903238761,6.209719,168.51,168.3,1.18766462]
[1721903238961,9.30703411,168.44,168.3,1.18766462]
[1721903239331,21.18755108,168.5,168.3,1.18766462]
[1721903239332,1.18755108,168.5,168.33,30.58]
[1721903239662,9.30614263,168.46,168.34,21.18748245]
[1721903239847,1.18755108,168.5,168.34,21.18748245]
[1721903240051,7.39727008,168.51,168.34,21.18748245]
[1721903240248,8.45454439,168.49,168.36,6.6296]
[1721903240551,8.45454439,168.49,168.37,96.76713691]
[1721903240753,1.18755108,168.55,168.37,96.76713691]
[1721903240969,17.75763973,168.54,168.37,96.76713691]
[1721903241453,7.23822212,168.59,168.41,30.58]
[1721903241454,1.18755108,168.59,168.41,30.58]
[1721903241651,9.3019933,168.57,168.42,46.18684736]
[1721903241866,10.48954438,168.57,168.43,21.1867827]
[1721903242043,9.3019933,168.57,168.44,45.0]
[1721903242243,9.3019933,168.57,168.45,21.18672947]
[1721903242442,10.48954438,168.57,168.45,20.0]
[1721903242862,10.48954438,168.57,168.42,21.18694133]
[1721903242863,25.72383738,168.57,168.42,21.18694133]
[1721903243062,25.72373738,168.57,168.42,21.18694133]
[1721903243283,19.79153738,168.57,168.43,1.18698449]
[1721903243568,19.79153738,168.57,168.42,20.0]
[1721903243939,45.0,168.56,168.42,20.0]
[1721903244147,1.18755108,168.55,168.42,20.0]
[1721903244441,1.18755108,168.55,168.43,1.18703232]
[1721903244638,19.79153738,168.57,168.43,1.18703232]
[1721903245050,19.79153738,168.57,168.43,46.18703232]
[1721903245360,19.79153738,168.57,168.44,20.0]
[1721903246137,9.3019933,168.57,168.45,1.18679481]
[1721903246457,0.8037985,168.58,168.47,6.321]
[1721903246657,0.8037985,168.58,168.48,20.0]
[1721903247157,0.8037985,168.58,168.48,21.18671492]
[1721903247359,0.8037985,168.58,168.49,16.77310803]
[1721903247663,0.8037985,168.58,168.5,20.0]
[1721903249756,0.8037985,168.58,168.47,6.321]
[1721903249962,1.18755108,168.57,168.47,6.321]
[1721903251659,46.18755108,168.57,168.47,6.321]
[1721903252376,0.8037985,168.58,168.47,6.321]
[1721903252702,0.8037985,168.58,168.47,7.50791827]
[1721903252965,0.8037985,168.58,168.48,20.0]
[1721903253354,0.8037985,168.58,168.49,1.18659436]
[1721903253666,0.8037985,168.58,168.48,20.0]
[1721903254548,1.18755108,168.57,168.47,6.321]
[1721903254746,1.18755108,168.57,168.48,20.0]
[1721903254947,5.9326,168.56,168.44,15.8552]
[1721903255146,1.18755108,168.55,168.44,15.8552]
[1721903255349,1.99134958,168.58,168.45,1.18687808]
[1721903255555,1.18755108,168.57,168.45,1.18687808]
[1721903255754,0.8037985,168.58,168.46,1.18674139]
[1721903257079,0.8037985,168.58,168.46,1.1867146]
[1721903257566,0.8037985,168.58,168.46,46.1867146]
[1721903257757,0.8037985,168.58,168.47,20.0]
[1721903258166,0.8037985,168.58,168.47,21.18659899]
[1721903258382,0.8037985,168.58,168.47,1.18659899]
[1721903258550,7.13527922,168.57,168.47,1.18659899]
[1721903258747,7.13527922,168.57,168.47,21.18659899]
[1721903258961,0.8037985,168.58,168.48,45.0]
[1721903259271,0.8037985,168.58,168.49,20.0]
[1721903259471,7.13498613,168.57,168.49,20.0]
[1721903259862,7.13498613,168.57,168.5,1.18652964]
[1721903260183,7.13498613,168.57,168.46,1.18648685]
[1721903260357,7.13498613,168.57,168.46,46.18648685]
[1721903260556,7.13498613,168.57,168.47,20.0]
[1721903260761,0.8037985,168.58,168.48,1.18657076]
[1721903260959,0.8037985,168.58,168.49,1.18654768]
[1721903261273,0.8037985,168.58,168.48,1.18655828]
[1721903261849,0.8037985,168.58,168.47,20.0]
[1721903262073,8.32340538,168.57,168.44,15.8552]
[1721903262287,7.1358543,168.56,168.44,15.8552]
[1721903262958,7.1358543,168.56,168.43,1.18676204]
[1721903263375,5.9334,168.54,168.42,7.30869382]
[1721903263549,5.9334,168.54,168.38,15.4873]
[1721903263550,8.32340538,168.53,168.4,31.76705968]
[1721903263751,87.9928543,168.52,168.37,6.4]
[1721903263955,5.9348,168.5,168.37,6.4]
[1721903264151,5.9358,168.47,168.34,1.18740829]
[1721903264355,5.9358,168.47,168.33,16.2898]
[1721903264356,5.9366,168.45,168.31,6.149]
[1721903264666,8.32756407,168.44,168.31,7.33673584]
[1721903264881,1.18755108,168.44,168.31,7.33673584]
[1721903265552,7.14073046,168.43,168.31,7.33673584]
[1721903265767,6.1153,168.46,168.33,21.18773455]
[1721903266073,45.4128,168.55,168.33,66.18773455]
[1721903266074,7.30285108,168.51,168.33,66.18773455]
[1721903266375,7.13941467,168.5,168.33,66.18773455]
[1721903266766,1.18755108,168.49,168.33,66.18773455]
[1721903267071,7.13941467,168.48,168.33,66.18773455]
[1721903267259,8.32696575,168.48,168.33,66.18773455]
[1721903267460,7.13941467,168.47,168.33,66.18773455]
[1721903268761,7.13941467,168.46,168.33,66.18773455]
[1721903269073,7.30285108,168.51,168.33,66.18773455]
[1721903269295,52.13858951,168.5,168.33,66.18773455]
[1721903269461,7.13858951,168.49,168.33,66.18773455]
[1721903269876,7.13858951,168.48,168.33,66.18773455]
[1721903270072,1.18755108,168.54,168.34,15.4069]
[1721903270261,7.13778162,168.53,168.35,66.18711398]
[1721903270592,8.3253327,168.53,168.36,1.18711398]
[1721903270761,7.13778162,168.52,168.36,1.18711398]
[1721903271260,1.18755108,168.51,168.36,1.18711398]
[1721903271467,13.07248162,168.5,168.36,1.18711398]
[1721903271677,8.3253327,168.49,168.36,1.18711398]
[1721903271898,7.13778162,168.48,168.36,1.18711398]
[1721903272392,30.58,168.56,168.35,21.187406]
[1721903272393,1.18755108,168.47,168.35,21.187406]
[1721903272613,7.13778162,168.46,168.34,16.59438508]
[1721903273869,8.3253327,168.46,168.35,20.0]
[1721903274089,8.3253327,168.45,168.35,20.0]
[1721903274295,7.13778162,168.44,168.35,20.0]
[1721903274996,7.13778162,168.44,168.32,30.58]
[1721903275301,1.18755108,168.43,168.32,30.58]
[1721903275507,7.13778162,168.42,168.32,30.58]
[1721903275997,8.3253327,168.42,168.32,30.58]
[1721903276184,7.13778162,168.41,168.32,30.58]
[1721903276378,7.13778162,168.44,168.33,20.0]
[1721903276592,7.13778162,168.43,168.33,20.0]
[1721903276779,7.13778162,168.42,168.33,20.0]
[1721903277099,7.13778162,168.42,168.33,21.18767286]
[1721903277306,29.028982,168.47,168.34,45.0]
[1721903277608,29.028982,168.47,168.35,21.18740398]
[1721903277609,7.13958862,168.46,168.35,21.18740398]
[1721903277899,7.13958862,168.46,168.36,46.18734657]
[1721903278101,7.13958862,168.46,168.37,20.0]
[1721903278407,8.3271397,168.46,168.37,20.0]
[1721903278573,7.13958862,168.45,168.37,20.0]
[1721903278882,7.13958862,168.44,168.33,21.18734748]
[1721903279080,7.137782,168.47,168.33,21.18734748]
[1721903279289,8.32686857,168.46,168.33,21.18734748]
[1721903279475,7.13931749,168.45,168.33,21.18734748]
[1721903279877,7.13931749,168.44,168.33,21.18734748]
[1721903280193,7.137782,168.47,168.33,21.18734748]
[1721903280394,7.13925447,168.46,168.34,45.0]
[1721903280601,7.13925447,168.46,168.35,21.18734607]
[1721903280805,7.13925447,168.46,168.36,1.18741942]
[1721903281175,21.9405,168.52,168.36,46.18741942]
[1721903281377,14.27687422,168.51,168.39,30.58]
[1721903281604,7.13762022,168.5,168.4,66.18698621]
[1721903281896,1.18755108,168.56,168.4,66.18698621]
[1721903282073,7.1366114,168.55,168.4,66.18698621]
[1721903282723,13.0697114,168.55,168.4,66.18698621]
[1721903282996,14.25756248,168.54,168.4,21.1871856]
[1721903283198,22.243,168.57,168.4,21.1871856]
[1721903283199,7.1366114,168.53,168.4,21.1871856]
[1721903283371,1.18755108,168.56,168.4,21.1871856]
[1721903283372,7.1366114,168.52,168.4,21.1871856]
[1721903283580,7.12015108,168.56,168.4,21.1871856]
[1721903283581,7.1366114,168.51,168.4,21.1871856]
[1721903283772,7.1366114,168.5,168.41,45.0]
[1721903283976,7.12015108,168.56,168.42,21.18700709]
[1721903284195,52.13701564,168.55,168.43,1.18700708]
[1721903284389,8.32456672,168.54,168.42,20.0]
[1721903284599,7.13701564,168.53,168.4,21.18700538]
[1721903284902,7.13701564,168.52,168.41,45.0]
[1721903285206,7.13701564,168.51,168.42,21.18697873]
[1721903285378,7.12015108,168.56,168.43,1.18697904]
[1721903285379,7.13701564,168.55,168.43,1.18697904]
[1721903285579,7.13676711,168.54,168.43,1.18697904]
[1721903285903,7.13676711,168.53,168.43,1.18697904]
[1721903286204,7.13676711,168.52,168.43,1.18697904]
[1721903286493,7.13676711,168.51,168.43,1.18697904]
[1721903286800,7.13676711,168.5,168.42,20.0]
[1721903286996,5.9337,168.53,168.42,20.0]
[1721903286997,1.18755108,168.52,168.42,20.0]
[1721903287183,7.13727594,168.51,168.43,1.18715445]
[1721903287376,7.12045108,168.56,168.41,1.1871728]
[1721903287581,52.13727383,168.55,168.41,1.1871728]
[1721903287789,7.13727383,168.54,168.41,1.1871728]
[1721903288298,1.18755108,168.53,168.4,21.18708547]
[1721903288598,7.13727383,168.52,168.4,21.18708547]
[1721903288779,7.13727383,168.52,168.41,45.0]
[1721903288979,7.13727383,168.51,168.42,20.0]
[1721903289297,45.0,168.5,168.37,21.8763]
[1721903289494,5.9361,168.47,168.37,21.8763]
[1721903289697,8.32482491,168.46,168.37,21.8763]
[1721903289904,7.12255108,168.49,168.37,21.8763]
[1721903290202,75.65273744,168.48,168.33,6.114]
[1721903290497,5.9365,168.45,168.33,6.114]
[1721903290809,8.32683744,168.44,168.33,6.114]
[1721903291010,7.13928636,168.43,168.33,6.114]
[1721903291202,8.32683744,168.42,168.33,6.114]
[1721903291404,1.18755108,168.42,168.33,6.114]
[1721903292603,1.18755108,168.46,168.33,7.30189764]
[1721903292900,7.14022143,168.45,168.34,1.18770953]
[1721903293198,1.18755108,168.47,168.34,20.0]
[1721903293375,1.18755108,168.47,168.33,15.60506175]
[1721903293376,7.13959947,168.46,168.33,15.60506175]
[1721903293581,1.18755108,168.47,168.33,15.60506175]
[1721903294306,46.18755108,168.47,168.33,15.60506175]
[1721903294487,52.12355108,168.47,168.33,15.60506175]
[1721903294676,46.18755108,168.47,168.33,15.60506175]
[1721903294989,46.18755108,168.47,168.33,15.60507789]
[1721903295195,1.18755108,168.47,168.34,45.0]
[1721903295597,1.18755108,168.47,168.35,20.0]
[1721903295998,1.18755108,168.5,168.35,20.0]
[1721903296389,1.18755108,168.5,168.36,6.0433]
[1721903296699,1.18755108,168.5,168.37,20.0]
[1721903297007,46.18755108,168.5,168.37,20.0]
[1721903297590,1.18755108,168.5,168.37,20.0]
[1721903298211,7.12225108,168.5,168.37,20.0]
[1721903298389,45.0,168.49,168.37,20.0]
[1721903298584,1.18755108,168.48,168.37,20.0]
[1721903299214,46.18755108,168.49,168.37,20.0]
[1721903299401,7.12295108,168.48,168.37,20.0]
[1721903299709,45.0,168.47,168.37,20.0]
[1721903300009,1.18755108,168.46,168.37,20.0]
[1721903300384,1.18755108,168.45,168.32,36.672]
[1721903300592,1.18755108,168.45,168.32,6.092]
[1721903301105,46.18755108,168.45,168.32,6.092]
[1721903301399,1.18755108,168.45,168.32,6.092]
[1721903301600,1.18755108,168.52,168.36,30.58]
[1721903301906,1.18755108,168.52,168.37,21.18731333]
[1721903301907,7.13840884,168.51,168.37,21.18731333]
[1721903302099,8.32595992,168.51,168.37,21.18731333]
[1721903302300,1.18755108,168.51,168.37,21.18731333]
[1721903302806,45.0,168.52,168.37,21.18731333]
[1721903303383,15.9866,168.55,168.38,45.0]
[1721903303384,7.13709992,168.51,168.38,45.0]
[1721903303682,7.13709992,168.5,168.4,22.2619]
[1721903303891,1.18755108,168.54,168.41,20.0]
[1721903304089,7.13685908,168.53,168.41,20.0]
[1721903304303,7.13685908,168.53,168.42,1.18710735]
[1721903304502,7.13685908,168.53,168.41,20.0]
[1721903304888,7.13685908,168.53,168.41,21.18714916]
[1721903305112,7.13685908,168.52,168.42,30.58]
[1721903305408,16.0287985,168.58,168.43,21.18697375]
[1721903305409,7.13658278,168.51,168.43,21.18697375]
[1721903305620,0.8037985,168.58,168.43,21.18697375]
[1721903305819,8.32329259,168.57,168.44,45.0]
[1721903305994,7.13574151,168.56,168.45,20.0]
[1721903306193,7.13574151,168.55,168.47,6.5296]
[1721903306493,7.13574151,168.54,168.47,6.5296]
[1721903306690,0.8037985,168.58,168.47,6.5296]
[1721903306890,7.13542455,168.57,168.47,6.5296]
[1721903307093,8.32297563,168.57,168.47,6.5296]
[1721903307321,7.13542455,168.56,168.47,6.5296]
[1721903307613,7.13542455,168.55,168.47,6.5296]
[1721903307800,7.13542455,168.57,168.47,6.5296]
[1721903308004,16.4364462,168.56,168.47,6.5296]
[1721903308204,8.32297563,168.55,168.47,6.5296]
[1721903308398,8.32297563,168.55,168.38,1.18677744]
[1721903308399,53.32297563,168.54,168.43,6.2731]
[1721903308604,7.13542455,168.53,168.43,6.2731]
[1721903309490,7.13542455,168.53,168.43,7.46014636]
[1721903309696,10.48857273,168.56,168.43,7.46014636]
[1721903310016,7.13603891,168.55,168.44,20.0]
[1721903311313,7.13603891,168.55,168.45,1.18682152]
[1721903311499,7.13603891,168.55,168.44,21.18697592]
[1721903311696,1.18755108,168.54,168.44,20.0]
[1721903311902,7.13603891,168.53,168.44,20.0]
[1721903312311,1.18755108,168.52,168.44,20.0]
[1721903312626,8.32358999,168.51,168.43,6.2731]
[1721903312793,7.13603891,168.5,168.43,6.2731]
[1721903313215,7.13603891,168.49,168.43,6.2731]
[1721903313422,7.13603891,168.48,168.43,6.2731]
[1721903313624,7.13603891,168.5,168.43,6.2731]
[1721903313814,7.13810446,168.49,168.43,6.2731]
[1721903314006,46.18755108,168.48,168.37,6.6353]
[1721903314215,7.13810446,168.47,168.37,6.6353]
[1721903314903,7.13810446,168.47,168.37,7.82272693]
[1721903315100,7.13884707,168.46,168.37,6.6353]
[1721903315307,1.18755108,168.51,168.38,21.18740609]
[1721903315506,7.13842044,168.5,168.38,21.18740609]
[1721903315714,7.13842044,168.5,168.38,20.0]
[1721903316110,8.32597152,168.5,168.38,20.0]
[1721903316310,7.13842044,168.49,168.39,1.18723512]
[1721903316620,7.13842044,168.48,168.38,21.1871998]
[1721903316813,7.13842044,168.52,168.38,21.1871998]
[1721903316993,7.13800121,168.51,168.38,21.1871998]
[1721903317200,7.13800121,168.5,168.38,21.1871998]
[1721903317400,1.18755108,168.54,168.39,45.0]
[1721903317613,7.13730974,168.53,168.4,20.0]
[1721903317819,20.0,168.52,168.4,20.0]
[1721903318116,7.13730974,168.51,168.4,21.18717324]
[1721903318298,7.13730974,168.51,168.4,1.18717324]
[1721903318498,7.13730974,168.5,168.4,1.18717324]
[1721903318699,7.12095108,168.54,168.4,21.18717324]
[1721903318912,7.13719127,168.53,168.4,21.18717324]
[1721903319113,7.13719127,168.53,168.41,15.2188]
[1721903319324,9.30102165,168.56,168.42,21.18696008]